Cogmind - Beta 14 @@@ ROGUE MODE // 2025.03.05 @ 00:04:51 Player: Scringis Result: Self-destructed Performance ------------- Evolutions (2) 1000 Regions Visited (3) 600 Robots Destroyed (39) 195 Value Destroyed (1179) 1179 Prototype IDs (2) 40 Alien Tech Used (0) 0 Bonus (13) 13 TOTAL SCORE: 3027 Bonus ------- High Alert Combat Kills 13 Cogmind --------- Core Integrity 286/550 Matter 300/300 Energy 71/100 System Corruption 0% Temperature Cool (0) Movement Treading (160) Location -8/Materials Parts ------- > --- POWER (1) -------- (None) > --- PROPULSION (3) --- Light Treads Light Treads Light Treads > --- UTILITY (3) ------ Improved Heat Sink Improved Heat Sink Large Storage Unit > --- WEAPON (4) ------- Improved Medium Laser > --- INVENTORY (15) --- EMP Blaster Plasma Cutter Peak State ------------ > --- POWER ------------ Deuterium Engine > --- PROPULSION ------- Light Treads Light Treads Light Treads > --- UTILITY ---------- Improved Heat Sink Improved Heat Sink Large Storage Unit > --- WEAPON ----------- Improved Medium Laser Improved Medium Laser Improved Medium Laser Improved Medium Laser > --- INVENTORY -------- Light Treads EMP Blaster Plasma Cutter [Rating: 25] Favorites ----------- Power Deuterium Engine Engine Deuterium Engine Propulsion Light Treads Treads Light Treads Utility Improved Heat Sink Device Improved Heat Sink Storage Small Storage Unit Weapon Improved Medium Laser Energy Gun Improved Medium Laser Ballistic Gun Assault Rifle Build | -11 -10 -9 -8 ------- Run | Yrd Mat Mat Mat Slots Evolved 4 | . . 2 2 Power . | . . . . Propulsion 1 | . . . 1 Utility 1 | . . . 1 Weapon 2 | . . 2 . Parts Attached 22 | 5 5 8 4 Power 4 | 1 1 2 . Engine 4 | 1 1 2 . Core . | . . . . Reactor . | . . . . Propulsion 6 | 2 . 1 3 Treads 6 | 2 . 1 3 Leg . | . . . . Wheel . | . . . . Hover . | . . . . Flight . | . . . . Utility 5 | 1 2 1 1 Device 3 | . 2 . 1 Storage 2 | 1 . 1 . Processor . | . . . . Hackware . | . . . . Protection . | . . . . Artifact . | . . . . Weapon 7 | 1 2 4 . Energy Gun 6 | . 2 4 . Energy Cannon . | . . . . Ballistic Gun 1 | 1 . . . Ballistic Cannon . | . . . . Launcher . | . . . . Special Weapon . | . . . . Impact Weapon . | . . . . Slashing Weapon . | . . . . Piercing Weapon . | . . . . Special Melee Weapon . | . . . . Unidentified Prototypes 2 | . 1 1 . Parts Lost 6 | . 1 . 5 Power 2 | . 1 . 1 Propulsion 1 | . . . 1 Utility . | . . . . Weapon 3 | . . . 3 Highest Loss Streak 2 | . 1 . 2 To Critical Strikes . | . . . . Average Slot Usage (%) 90 | . 92 89 88 Engine 10 | . 13 10 8 Treads 24 | . 28 21 25 Device 12 | . 11 11 16 Storage 11 | . 14 11 9 Energy Gun 28 | . 21 34 28 Peak Build Rating 25 | 5 13 21 25 Average Rating 16 | 3 10 18 21 On Entrance 9 | . 5 13 21 Naked Turns . | . . . . Heaviest Build 43 | 10 17 42 43 Greatest Support 60 | 40 40 40 60 Greatest Overweight (x) 1 | . . 1 1 Average Overweight (x) . | . . . . Largest Inventory Capacity 15 | 8 8 15 15 Average Capacity 10 | 7 8 8 15 Most Carried 5 | 4 5 5 4 Average Carried 3 | 1 3 3 2 Final Capacity 15 | 8 8 15 15 Final Carried 4 | 1 4 3 2 Class Distribution -------------------- 53% | Gunner 46% | Mutant Dominant Class ---------------- Mutant | -10/Materials Gunner | -9/Materials Gunner | -8/Materials Resources | -11 -10 -9 -8 ----------- Run | Yrd Mat Mat Mat Matter Collected 412 | 237 64 20 91 Remotely . | . . . . Salvage Created 1183 | . 337 286 560 Parts 78 | . 24 28 26 Haulers Intercepted . | . . . . Recyclers Shooed 1 | . . . 1 Parts Field Recycled . | . . . . Retrieved Matter . | . . . . Parts Self-Destructed . | . . . . Prevented . | . . . . Kills | -11 -10 -9 -8 ------- Run | Yrd Mat Mat Mat Combat Hostiles Destroyed 34 | . 9 8 17 Guns 34 | . 9 8 17 Classes Destroyed 5 | . 3 1 1 Operator 1 | . . 1 . Watcher 4 | . 1 3 . Swarmer 13 | . 3 3 7 Grunt 19 | . 6 5 8 Sentry 2 | . . . 2 Best Kill Streak 8 | . 8 4 7 Combat Bots Only 7 | . 7 3 7 Max Kills in Single Turn 2 | . 1 2 1 Gunslinging . | . . . . Exploded . | . . . . Melee . | . . . . Uniques/NPCs Destroyed . | . . . . Combat | -11 -10 -9 -8 -------- Run | Yrd Mat Mat Mat Hostile Shots Fired 146 | . 25 14 107 Missed 46 | . 9 6 31 Damage Taken 1307 | . 184 76 1047 Core 296 | . 26 6 264 Absorbed by Shields . | . . . . Core Remaining (%) 95 | 100 89 98 . Volleys Fired 81 | . 25 20 36 Largest 4 | . 2 3 4 Hottest 224 | . 112 168 224 Shots Fired 204 | . 48 60 96 Gun 204 | . 48 60 96 Cannon . | . . . . Launcher . | . . . . Special . | . . . . Kinetic 2 | . 2 . . Thermal 202 | . 46 60 96 Explosive . | . . . . Electromagnetic . | . . . . Robot Hit Streak 10 | . 7 5 10 Robot Miss Streak 8 | . 2 8 4 Penetration Max . | . . . . Secondary Targets 7 | . 1 . 6 Max Gunslinging Chain 1 | . 1 . 1 Shots Hit Robots 115 | . 30 26 59 Core Hits 52 | . 12 12 28 Critical Kills . | . . . . Critical Parts Destroyed . | . . . . Critical Strikes 10 | . 2 3 5 Burn 10 | . 2 3 5 Melee Attacks . | . . . . Impact . | . . . . Slashing . | . . . . Piercing . | . . . . Sneak Attacks . | . . . . Combat Hostiles . | . . . . Follow-up Attacks . | . . . . Damage Inflicted 2387 | . 545 490 1352 Guns 2144 | . 545 490 1109 Cannons . | . . . . Explosions 212 | . . . 212 Melee . | . . . . Ramming 31 | . . . 31 Kinetic 12 | . 12 . . Thermal 2344 | . 533 490 1321 Explosive . | . . . . Electromagnetic . | . . . . Impact . | . . . . Slashing . | . . . . Piercing . | . . . . Highest Corruption . | . . . . Average Corruption . | . . . . Corruption Purged . | . . . . Corruption Blocked . | . . . . Overload Shots . | . . . . Overflow Damage 66 | . . . 66 Projectiles . | . . . . Explosions 66 | . . . 66 Melee . | . . . . Knockbacks . | . . . . Impact . | . . . . Kinetic . | . . . . Secondary . | . . . . Self-Inflicted Damage 200 | . . . 200 Shots 2 | . . . 2 Rammed 4 | . . . 4 Targets Rammed 4 | . . . 4 Kicked . | . . . . Crushed . | . . . . Highest Temperature 281 | . 114 210 281 Average Temperature 72 | . 50 73 101 Received Heat Transfer 363 | . 81 30 252 Siege Activations . | . . . . Robots Corrupted . | . . . . Combat Hostiles . | . . . . Parts Fried . | . . . . Impact Corruptions . | . . . . Robots Melted . | . . . . Combat Hostiles . | . . . . Parts Melted 7 | . 1 1 5 Heat Transferred 5565 | . 1295 1295 2975 Parts Sabotaged . | . . . . Parts Stolen . | . . . . Parts Stripped . | . . . . Power Chain Reactions . | . . . . Alert | -11 -10 -9 -8 ------- Run | Yrd Mat Mat Mat Peak Influence 465 | . 307 341 465 Initial 59 | . . 44 59 Average 151 | . 93 144 247 Maximum Alert Level 2 | . 1 1 2 Low Security (%) 71 | 100 83 77 48 Level 1 20 | . 16 22 25 Level 2 7 | . . . 25 Level 3 . | . . . . Level 4 . | . . . . Level 5 . | . . . . High Security . | . . . . Max Security . | . . . . Squads Dispatched 4 | . 2 1 1 Investigation . | . . . . Extermination . | . . . . Reinforcement 4 | . 2 1 1 Assault . | . . . . Garrison . | . . . . Intercept . | . . . . Searches Triggered . | . . . . Construction Impeded . | . . . . Haulers Reinforced . | . . . . Active Scanning Responses . | . . . . Cargo Convoy Interrupts . | . . . . Stealth | -11 -10 -9 -8 --------- Run | Yrd Mat Mat Mat Distress Signals 4 | . 2 1 1 Communications Jammed . | . . . . Distress Signals . | . . . . Times Spotted 49 | . 14 12 23 Peak Tracking Total 10 | . 6 3 10 Tactical Retreats . | . . . . Traps | -11 -10 -9 -8 ------- Run | Yrd Mat Mat Mat Traps Triggered 1 | . . 1 . Indirectly . | . . . . Trap Hack Attempts . | . . . . Triggered . | . . . . Disarmed . | . . . . Reprogrammed . | . . . . Reused . | . . . . Traps Extracted . | . . . . Installed . | . . . . Triggered . | . . . . Machines | -11 -10 -9 -8 ---------- Run | Yrd Mat Mat Mat Machines Disabled 10 | . 1 3 6 Max in Single Turn 3 | . 1 1 3 Machines Repaired . | . . . . Machines Dismantled . | . . . . Machines Sabotaged . | . . . . Overloaded Fab Kills . | . . . . Hacking | -11 -10 -9 -8 --------- Run | Yrd Mat Mat Mat Machines Accessed . | . . . . Terminals . | . . . . Fabricators . | . . . . Repair Stations . | . . . . Recycling Units . | . . . . Scanalyzers . | . . . . Garrison Access . | . . . . Total Hacks . | . . . . Successful . | . . . . Failed . | . . . . Catastrophic . | . . . . Database Lockouts . | . . . . Manual . | . . . . Terminals . | . . . . Fabricators . | . . . . Repair Stations . | . . . . Recycling Units . | . . . . Scanalyzers . | . . . . Garrison Access . | . . . . Terminal Hacks . | . . . . Fabricator Hacks . | . . . . Repair Station Hacks . | . . . . Recycling Unit Hacks . | . . . . Scanalyzer . | . . . . Garrison Access Hacks . | . . . . Unauthorized Hacks . | . . . . Terminals . | . . . . Fabricators . | . . . . Repair Stations . | . . . . Recycling Units . | . . . . Scanalyzers . | . . . . Garrison Access . | . . . . Data Cores Recovered . | . . . . Used . | . . . . Hacking Detections . | . . . . Full Trace Events . | . . . . Feedback Events . | . . . . Feedback Blocked . | . . . . Robot Schematics Acquired . | . . . . Robots Built . | . . . . Authchips . | . . . . Time . | . . . . Total Robot Build Rating . | . . . . Part Schematics Acquired . | . . . . Parts Built . | . . . . Authchips . | . . . . Time . | . . . . Total Part Build Rating . | . . . . Parts Repaired . | . . . . Time . | . . . . Parts Recycled . | . . . . Recycled Matter . | . . . . Retrieved Matter . | . . . . Retrieved Components . | . . . . Parts Scanalyzed . | . . . . Part Schematics Acquired . | . . . . Parts Damaged . | . . . . Bothacking | -11 -10 -9 -8 ------------ Run | Yrd Mat Mat Mat Used RIF Installer . | . . . . Robots Hacked . | . . . . Non-combat . | . . . . Combat . | . . . . Robot Hacks Applied . | . . . . Relay Couplers Released . | . . . . Fabnet Peak Effective % . | . . . . Robots Rewired . | . . . . Allies Hacked . | . . . . Hacks Repelled . | . . . . Allies | -11 -10 -9 -8 -------- Run | Yrd Mat Mat Mat Total Allies . | . . . . Largest Group . | . . . . Highest-Rated Group . | . . . . Highest-Rated Ally . | . . . . Total Orders . | . . . . Ally Attacks . | . . . . Total Damage . | . . . . Kills . | . . . . Allies Corrupted . | . . . . Allies Melted . | . . . . Intel | -11 -10 -9 -8 ------- Run | Yrd Mat Mat Mat Robot Analysis Total . | . . . . Derelict Logs Recovered . | . . . . Drone Launches . | . . . . Drone Recoveries . | . . . . Exploration | -11 -10 -9 -8 ------------- Run | Yrd Mat Mat Mat Turns Passed 1454 | 94 401 524 435 Spaces Moved 657 | 54 190 255 158 Core 5 | 5 . . . Treads 652 | 49 190 255 158 Legs . | . . . . Wheels . | . . . . Hover . | . . . . Flight . | . . . . Fastest Speed 50 | 50 160 160 160 Average Speed 161 | 149 160 162 166 Slowest Speed 240 | 160 160 240 240 Overloaded Moves . | . . . . Propulsion Burnouts . | . . . . Robots Hopped . | . . . . Cave-ins Triggered . | . . . . Exploration Rate (%) 25 | 4 43 27 28 Regions Visited 3 Branch Regions . Pre-discovered Areas . | . . . . Known Exits Taken . | . . . . Unknown Exits Taken 3 | 1 1 1 . Scrap Searched . | . . . . Spaces Dug . | . . . . Terrain Destroyed 29 | . . . 29 Melee . | . . . . Projectile . | . . . . AOE 29 | . . . 29 Terrain Rammed . | . . . . Walls Destroyed . | . . . . Machines Disabled . | . . . . Actions | -11 -10 -9 -8 --------- Run | Yrd Mat Mat Mat Total 878 | 68 240 321 249 Wait 84 | . 11 30 43 Move 654 | 53 189 254 158 Hop . | . . . . Pick Up 25 | 8 8 6 3 Fast Attach . | . . . . Attach 17 | 5 4 5 3 Detach . | . . . . Swap 5 | . 1 3 1 Drop 8 | 2 2 3 1 Fire 81 | . 25 20 36 Melee . | . . . . Ram . | . . . . Kick . | . . . . Crush 4 | . . . 4 Escape Stasis . | . . . . Rewire . | . . . . Trap . | . . . . Miscellaneous . | . . . . Route ------- -11/Scrapyard -10/Materials (discovered 3 exits: [*Mat x2] / [*Min]) -9/Materials (discovered 2 exits: [*Mat] / [*Min]) -8/Materials History --------- Turn | Location | Event 11 | -11/Scrapyard | Discovered new exit (range 15) 95 | -11/Scrapyard | Entered Materials 255 | -10/Materials | Discovered new exit (range 13) 303 | -10/Materials | Build established: Mutant 321 | -10/Materials | Discovered new exit (range 11) 481 | -10/Materials | Destroyed 7 combat bots 482 | -10/Materials | Discovered new exit (range 10) 496 | -10/Materials | Entered another Materials area 496 | -9/Materials | Evolved 2 slots: Weapon x2 563 | -9/Materials | Discovered new exit (range 15) 809 | -9/Materials | Build established: Gunner 972 | -9/Materials | Discovered new exit (range 12) 1020 | -9/Materials | Entered another Materials area 1020 | -8/Materials | Evolved 2 slots: Propulsion x1, Utility x1 1330 | -8/Materials | Destroyed 7 combat bots 1455 | -8/Materials | Self-destructed Last Messages --------------- (Burn). 01378_ Y-45 Defender destroyed. 01385_ Acquired Lgt. Treads. 01389_ Dropped Lgt. Treads. 01390_ Acquired 20 matter. 01400_ R-06 Scavenger collects Imp. Ion Engine. 01403_ R-06 Scavenger collects Lgt. Treads. 01425_ G-47 Trooper destroyed. 01428_ Fusion Modulator explodes. 01428_ Terminal disabled. 01428_ Deuterium Engine destroyed. 01428_ Destroyed Deuterium Engine. 01428_ G-47 Trooper destroyed. 01428_ Switching to secondary target: G-47 Trooper. 01431_ G-47 Trooper suffers critical hit (Burn). 01431_ G-47 Trooper destroyed. 01438_ R-06 Scavenger collects Imp. Heat Sink. 01446_ R-06 Scavenger collects Aluminum Leg. 01454_ Imp. Medium Laser destroyed. Map ----- +----------------------------------------------------+ | ??????????????## #"T"##### #???????????????????? | | ??????????????# % #???????????????????? | | ??????????????# % % #???????????????????? | | ??????????????# +???????????????????? | | ??????????????+ %% #???????????????????? | | ??????????????# " " #???????????????????? | | ??????????????# """ " #???????????????????? | | ??????????????# "" "" % #???????????????????? | | ???????????? #???????????????????? | | ???????????? #???????????????????? | | ???????????? """ " " #???????????????????? | | ?????????????## """ """ #???????????????????? | | ??????????????# """ "" k#???????""??????????? | | ??????????????# #######"T"##????????? | | ??????????????# ??????? | | ??????????????# """ """ ??????? | | ??????????????? """ """ T ??????? | | ??????????????# """ """ ???????? | | ??????????????# """ ???????? | | ??????????????# r """???? ?????? | | ??????????????# """ """ k """?? ?????? | | ???????????#### """ """ """"" #????? | | ??????????? gk""" """ ^ """ #????? | | ?????????? g #????? | | ?????????? g #????? | | ??????????????# @ ##???? | | ??????????????# ######## ???? | | ??????????????# # ???# #????? | | ??????????????????+ ??# #????? | | ??????????????????# ?# ######+??????? | | ??????????????????# ?# #????????????? | | ??????????????????# # #????????????? | | ??????????????????? # ##???????????? | | ????????????????????????#""" ;;##??????????? | | ????????????????????????# " #??????????? | | ????????????????????????# "% #??????????? | | ????????????????????????# "% % #??????????? | | ????????????????????????##" #??????????? | | ?????????????????????????#" #?????????? | | ?????????????????????????#" ##?????????? | | ?????????????????????????## #??????????? | | ??????????????????????????##"""""""""##??????????? | | | | | | | | | | | | | | | | | +----------------------------------------------------+ Best States ------------- Heat Dissipation 59 Energy Generation 14 Energy Capacity 275 Matter Stores 300 Matter Capacity 300 Sight Range 16 Terrain Scan Density 10 Evasion (%) 40 Recoil Reduction 3 Item Schematics ----------------- None Robot Schematics ------------------ None Fabricated ------------ Nothing Alien Tech Used ----------------- None Achievements -------------- None Challenges ------------ None Game ------ Seed InsulationSuspensionBank Manual? 0 Play Time 00:09:28 Cumulative 19.2 hours Start 2025.03.04 @ 23:57:37 End 2025.03.05 @ 00:04:51 Sessions 1 Manual Loads 0 Difficulty Rogue Special Mode None Game No. 60 Rogue 60 Adventurer 0 Explorer 0 Win Type - Total 0 Types 0/0/0/0/0/0/0/0/0 Lore% 11 Gallery% 19 Achievement% 19 Wizard Run 0 Options --------- Layout 1 ASCII 0 Keyboard 0 Movement Numpad Keybinds 0 Fullscreen 2 Font 24/Smallcaps Map View 50x35 Zoom Use 0% Tactical HUD 1 Map Filters NONE Filters NONE Steam 1 RUN: 1d46e218-288a-493b-b416-629e3cdfba8d